bitfinex/quotes_BTCUSD_20250829
["timestamp","ask_amount","ask_price","bid_price","bid_amount"]
[1756498779420,0.35707527,108040.0,108030.0,0.58046437]
[1756498779624,0.88422587,108040.0,108030.0,0.50835007]
[1756498779821,1.06934249,108040.0,108030.0,0.34959007]
[1756498780026,0.88620587,108040.0,108030.0,0.50835007]
[1756498780228,0.88422587,108040.0,108030.0,0.51035007]
[1756498780645,0.88422587,108040.0,108030.0,0.51235007]
[1756498782064,0.35707527,108040.0,108030.0,0.51235007]
[1756498782201,0.88422587,108040.0,108030.0,0.51235007]
[1756498782424,0.88422587,108040.0,108030.0,0.35359007]
[1756498782628,0.88422587,108040.0,108030.0,0.51235007]
[1756498785494,0.5271506,108060.0,108030.0,0.52160675]
[1756498785682,0.20214757,108060.0,108050.0,0.18509949]
[1756498785884,0.20412757,108060.0,108050.0,0.43715581]
[1756498786510,0.20214757,108060.0,108050.0,0.43715581]
[1756498786692,0.20412757,108060.0,108050.0,0.43715581]
[1756498786891,0.73127817,108060.0,108050.0,0.43715581]
[1756498787114,0.81957449,108060.0,108050.0,0.43715581]
[1756498787335,0.82057246,108060.0,108050.0,0.43715581]
[1756498787545,0.6325101,108060.0,108050.0,0.43715581]
[1756498787753,0.54421378,108060.0,108050.0,0.43715581]
[1756498787983,0.72929614,108060.0,108050.0,0.43715581]
[1756498788204,0.72929654,108060.0,108050.0,0.43715581]
[1756498788418,0.73127654,108060.0,108050.0,0.43715581]
[1756498788617,0.73127654,108060.0,108050.0,0.43215581]
[1756498789142,0.54719418,108060.0,108050.0,0.43720581]
[1756498789358,0.73227654,108060.0,108050.0,0.43215581]
[1756498789571,0.78027182,108060.0,108050.0,0.43215581]
[1756498791467,0.78027182,108060.0,108050.0,0.43426581]
[1756498791664,0.54719418,108060.0,108050.0,0.43720581]
[1756498791880,0.01806358,108060.0,108050.0,0.43720581]
[1756498792098,0.001,108060.0,108050.0,0.43720581]
[1756498792522,0.001,108060.0,108050.0,0.47838189]
[1756498792729,0.34,108070.0,108060.0,0.18508236]
[1756498792906,0.34,108070.0,108060.0,0.34664868]
[1756498793052,0.34,108070.0,108060.0,0.34858868]
[1756498793660,0.8691306,108070.0,108060.0,0.50730868]
[1756498794306,0.8671506,108070.0,108060.0,0.50730868]
[1756498795233,0.8671506,108070.0,108060.0,0.50830868]
[1756498795440,0.8671506,108070.0,108060.0,0.50930868]
[1756498795644,0.34,108070.0,108060.0,0.50930868]
[1756498796444,1.07562381,108070.0,108060.0,0.50930868]
[1756498796668,0.89055858,108070.0,108060.0,0.50930868]
[1756498797291,0.88857858,108070.0,108060.0,0.50930868]
[1756498797690,0.8671506,108070.0,108060.0,0.50930868]
[1756498798764,1.05424583,108070.0,108060.0,0.50930868]
[1756498799205,1.05424583,108070.0,108060.0,0.34653868]
[1756498799408,1.05424583,108070.0,108060.0,0.50525868]
[1756498800477,1.05553583,108070.0,108060.0,0.50521868]
[1756498800699,1.14254215,108070.0,108060.0,0.50521868]
[1756498801995,1.14254215,108070.0,108060.0,0.32013632]
[1756498802221,1.14254215,108070.0,108060.0,0.50521868]
[1756498803060,1.14254215,108070.0,108060.0,0.32013632]
[1756498803294,1.14254215,108070.0,108060.0,0.50521868]
[1756498805109,0.95747692,108070.0,108060.0,0.51026868]
[1756498805311,0.8671506,108070.0,108060.0,0.51026868]
[1756498805583,0.5271506,108090.0,108080.0,0.18504811]
[1756498805788,0.5271506,108090.0,108080.0,0.43707443]
[1756498806227,0.8671506,108090.0,108080.0,0.43707443]
[1756498806678,0.34,108090.0,108080.0,0.43707443]
[1756498806831,0.341,108090.0,108080.0,0.43707443]
[1756498807039,0.001,108090.0,108080.0,0.43707443]
[1756498807261,0.341,108090.0,108080.0,0.43707443]
[1756498807882,0.1850636,108080.0,108060.0,0.25624157]
[1756498808092,0.8691806,108070.0,108060.0,0.25624236]
[1756498808286,0.8671506,108070.0,108060.0,0.41993236]
[1756498808810,0.8671506,108070.0,108060.0,0.15945632]
[1756498808811,1.05419583,108070.0,108060.0,0.15945632]
[1756498808993,1.14383215,108070.0,108060.0,0.31809632]
[1756498809391,1.14383215,108070.0,108060.0,0.31909632]
[1756498809589,1.14383215,108070.0,108060.0,0.16045632]
[1756498810005,1.14383215,108070.0,108060.0,0.31809632]
[1756498810436,1.14383215,108070.0,108060.0,0.07116]
[1756498810601,1.16096704,108070.0,108060.0,0.07116]
[1756498810800,1.15962704,108070.0,108060.0,0.2308]
[1756498811093,1.15962704,108070.0,108060.0,0.2298]
[1756498811416,1.16162704,108070.0,108060.0,0.2298]
[1756498811622,1.18845104,108070.0,108060.0,0.2298]
[1756498812071,1.18945104,108070.0,108060.0,0.2298]
[1756498812406,1.19145104,108070.0,108060.0,0.2298]
[1756498813020,1.19279104,108070.0,108060.0,0.2298]
[1756498813604,1.19145104,108070.0,108060.0,0.2298]
[1756498813781,0.344,108070.0,108060.0,0.50822868]
[1756498813985,0.8711506,108070.0,108060.0,0.50822868]
[1756498814779,0.8691506,108070.0,108060.0,0.50822868]
[1756498814990,0.95747692,108070.0,108060.0,0.50317868]
[1756498815193,0.95544692,108070.0,108060.0,0.50822868]
[1756498816289,0.8671506,108070.0,108060.0,0.50822868]
[1756498817278,0.11611532,108090.0,108080.0,0.18504811]
[1756498817522,0.11611532,108090.0,108080.0,0.43699443]
[1756498817523,0.5549696,108090.0,108080.0,0.43699443]
[1756498818139,0.5271506,108090.0,108080.0,0.43699443]
[1756498818369,0.8671506,108090.0,108080.0,0.43699443]
[1756498818749,0.8671506,108090.0,108080.0,0.43799443]
[1756498818992,0.02316087,108100.0,108090.0,0.18503099]
[1756498819105,0.02316087,108100.0,108090.0,0.34754731]
[1756498819310,0.8671506,108100.0,108090.0,0.34968731]
[1756498819522,0.95544692,108100.0,108090.0,0.50828731]
[1756498820146,0.97914763,108100.0,108090.0,0.50828731]
[1756498820978,1.1661415,108100.0,108090.0,0.50708731]
[1756498821294,0.89085131,108100.0,108090.0,0.51228731]
[1756498821490,1.07784518,108100.0,108090.0,0.51228731]
[1756498821743,1.07784518,108100.0,108090.0,0.50708731]
[1756498822080,1.07784518,108100.0,108090.0,0.50522731]
[1756498822366,0.89283131,108100.0,108090.0,0.50828731]
[1756498822584,0.55283131,108100.0,108090.0,0.50928731]
[1756498822756,0.55085131,108100.0,108090.0,0.50928731]
[1756498823962,0.55085131,108100.0,108090.0,0.51028731]
[1756498824195,0.02370071,108100.0,108090.0,0.51028731]
[1756498824327,0.55085131,108100.0,108090.0,0.51028731]
[1756498824518,0.5271506,108100.0,108090.0,0.51028731]
[1756498824719,0.5271506,108100.0,108090.0,0.35168731]
[1756498824940,0.5291306,108100.0,108090.0,0.51024731]
[1756498825169,0.71414447,108100.0,108090.0,0.51024731]
[1756498825391,0.89050881,108100.0,108090.0,0.51024731]
[1756498825571,0.55050881,108100.0,108090.0,0.51024731]
[1756498825861,0.02335821,108100.0,108090.0,0.51024731]
[1756498826092,0.8671506,108110.0,108100.0,0.18501387]
[1756498826442,0.8671506,108110.0,108100.0,0.27851019]
[1756498827299,1.05214736,108110.0,108100.0,0.27851019]
[1756498827480,0.8671506,108110.0,108100.0,0.27851019]
[1756498827778,0.8899456,108110.0,108100.0,0.27851019]
[1756498828164,1.07494236,108110.0,108100.0,0.27851019]
[1756498828366,0.8899456,108110.0,108100.0,0.27851019]
[1756498828686,1.07692236,108110.0,108100.0,0.43707019]
[1756498829215,1.07692236,108110.0,108100.0,0.27851019]
[1756498829443,1.07494236,108110.0,108100.0,0.43707019]
[1756498829614,1.07692236,108110.0,108100.0,0.43707019]
[1756498829829,1.07692236,108110.0,108100.0,0.27331019]
[1756498830019,1.07692236,108110.0,108100.0,0.43183019]
[1756498830243,0.8899456,108110.0,108100.0,0.43397019]
[1756498830459,1.07692236,108110.0,108100.0,0.27331019]
[1756498830663,1.07692236,108110.0,108100.0,0.08829632]
[1756498830872,1.16655868,108110.0,108100.0,0.08829632]
[1756498831052,1.16655868,108110.0,108100.0,0.24681632]
[1756498832047,1.16521868,108110.0,108100.0,0.24681632]
[1756498832638,0.18501387,108100.0,108090.0,0.07116]
[1756498832889,1.14378079,108100.0,108090.0,0.31797632]
[1756498833059,1.14244079,108100.0,108090.0,0.31797632]
[1756498833670,1.14244079,108100.0,108090.0,0.31897632]
[1756498834064,0.8671506,108100.0,108090.0,0.50920731]
[1756498834377,0.8671506,108100.0,108090.0,0.50820731]
[1756498834788,1.05216447,108100.0,108090.0,0.50820731]
[1756498836442,0.34,108100.0,108090.0,0.50820731]
[1756498836629,0.022795,108110.0,108100.0,0.18501387]
[1756498836805,1.05214736,108110.0,108100.0,0.27851019]
[1756498837008,0.8671506,108110.0,108100.0,0.27851019]
[1756498837611,0.89029018,108110.0,108100.0,0.27851019]
[1756498840447,1.16556326,108110.0,108100.0,0.27331019]
[1756498840675,1.16556326,108110.0,108100.0,0.43279019]
[1756498840850,1.07726694,108110.0,108100.0,0.08929632]
[1756498841080,1.07726694,108110.0,108100.0,0.43279019]
[1756498841286,0.89227018,108110.0,108100.0,0.43899019]
[1756498841497,0.89029018,108110.0,108100.0,0.43899019]
[1756498841841,1.07726694,108110.0,108100.0,0.43899019]
[1756498842121,0.89227018,108110.0,108100.0,0.43899019]
[1756498842326,0.89029018,108110.0,108100.0,0.43899019]
[1756498844441,1.07726694,108110.0,108100.0,0.43899019]
[1756498844729,1.07726694,108110.0,108100.0,0.43379019]
[1756498844944,1.07726694,108110.0,108100.0,0.43899019]
[1756498845130,0.89227018,108110.0,108100.0,0.43899019]
[1756498845366,0.89029018,108110.0,108100.0,0.43899019]
[1756498848628,1.07528694,108110.0,108100.0,0.43899019]
[1756498848828,0.36313958,108110.0,108100.0,0.43899019]
[1756498848981,0.89029018,108110.0,108100.0,0.43899019]
[1756498849396,0.02313958,108110.0,108100.0,0.43899019]
[1756498849664,0.5271506,108120.0,108110.0,0.18499676]
[1756498849811,0.5271506,108120.0,108110.0,0.34645308]
[1756498849812,0.8671506,108120.0,108110.0,0.34645308]
[1756498850014,0.8671506,108120.0,108110.0,0.34943308]
[1756498851506,0.8671506,108120.0,108110.0,0.35043308]
[1756498852136,0.5271506,108120.0,108110.0,0.35043308]
[1756498852333,0.98416336,108140.0,108110.0,0.35043308]
[1756498852334,0.5271506,108130.0,108120.0,0.18496407]
[1756498852552,0.3404,108140.0,108130.0,0.18994254]
[1756498852862,1.05447604,108140.0,108130.0,0.27823886]
[1756498853094,0.8695306,108140.0,108130.0,0.27823886]
[1756498853228,0.8675506,108140.0,108130.0,0.27823886]
[1756498853449,0.8675506,108140.0,108130.0,0.27723886]
[1756498854328,0.89057374,108140.0,108130.0,0.27723886]
[1756498855224,0.55036858,108140.0,108130.0,0.27723886]
[1756498855431,1.07751918,108140.0,108130.0,0.27723886]
[1756498855576,1.07949918,108140.0,108130.0,0.27723886]
[1756498856426,0.89257374,108140.0,108130.0,0.27723886]
[1756498857534,1.07949918,108140.0,108130.0,0.24669632]
[1756498857737,1.07949918,108140.0,108130.0,0.43165886]
[1756498858805,1.07949918,108140.0,108130.0,0.08829632]
[1756498858806,1.68534417,108140.0,108130.0,0.08829632]
[1756498858935,1.68534417,108140.0,108130.0,0.24669632]
[1756498859297,1.59704785,108140.0,108130.0,0.24669632]
[1756498859491,1.06989725,108140.0,108130.0,0.24669632]
[1756498860117,1.59704785,108140.0,108130.0,0.24669632]
[1756498860280,1.59704785,108140.0,108130.0,0.08829632]
[1756498860507,1.06989725,108140.0,108130.0,0.24665632]
[1756498861053,1.06755725,108140.0,108130.0,0.43161886]
[1756498861467,1.06457725,108140.0,108130.0,0.50567244]
[1756498861910,1.06557725,108140.0,108130.0,0.50567244]
[1756498862084,1.06557725,108140.0,108130.0,0.43659886]
[1756498862433,1.06655725,108140.0,108130.0,0.08829632]
[1756498862643,1.06655725,108140.0,108130.0,0.24665632]
[1756498862644,1.59504785,108140.0,108130.0,0.24665632]
[1756498863047,1.59504785,108140.0,108130.0,0.08829632]
[1756498863261,0.18496254,108130.0,108120.0,0.07116]
[1756498863463,1.24124374,108130.0,108120.0,0.31781632]
[1756498864080,1.24124374,108130.0,108120.0,0.50279597]
[1756498864510,1.24258374,108130.0,108120.0,0.15945632]
[1756498864831,1.24258374,108130.0,108120.0,0.23252]
[1756498864995,1.33088006,108130.0,108120.0,0.23252]
[1756498865194,1.34803972,108130.0,108120.0,0.23252]
[1756498865459,1.34803972,108130.0,108120.0,0.23152]
[1756498865649,1.34803972,108130.0,108120.0,0.07316]
[1756498865865,1.68803972,108130.0,108120.0,0.07316]
[1756498866019,1.68803972,108130.0,108120.0,0.23152]
[1756498866020,1.70897854,108130.0,108120.0,0.23152]
[1756498866228,1.73518165,108130.0,108120.0,0.23152]
[1756498866646,1.73518165,108130.0,108120.0,0.22952]
[1756498867248,1.73618165,108130.0,108120.0,0.22952]
[1756498867463,1.73718165,108130.0,108120.0,0.22952]
[1756498868047,1.76499265,108130.0,108120.0,0.07116]
[1756498868404,1.76499265,108130.0,108100.0,0.07112]
[1756498868405,0.18499676,108110.0,108100.0,0.07112]
[1756498868610,0.18499676,108110.0,108100.0,0.22944]
[1756498868611,1.33036315,108110.0,108100.0,0.22944]
[1756498868817,1.33170381,108110.0,108100.0,0.22944]
[1756498869015,1.35951781,108110.0,108100.0,0.07112]
[1756498869240,1.35951781,108110.0,108100.0,0.22944]
[1756498869666,0.83236721,108110.0,108100.0,0.22944]
[1756498869838,0.83236721,108110.0,108100.0,0.23144]
[1756498870044,0.83102721,108110.0,108100.0,0.23144]
[1756498870254,0.75910168,108110.0,108100.0,0.23344]
[1756498870467,0.73996136,108110.0,108100.0,0.32571632]
[1756498870748,0.71214736,108110.0,108100.0,0.32571632]
[1756498871574,0.71214736,108110.0,108100.0,0.51073019]
[1756498871792,0.50442679,108110.0,108100.0,0.51073019]
[1756498871999,0.68942355,108110.0,108100.0,0.51073019]
[1756498872191,0.68888455,108110.0,108100.0,0.51073019]
[1756498872394,0.71214736,108110.0,108100.0,0.51073019]
[1756498872602,0.8671506,108110.0,108100.0,0.51073019]
[1756498873671,1.05426736,108110.0,108100.0,0.16739632]
[1756498873876,1.05214736,108110.0,108100.0,0.32571632]
[1756498874946,0.8671506,108110.0,108100.0,0.51073019]
[1756498876286,0.34,108110.0,108100.0,0.51073019]
[1756498876486,0.5271506,108110.0,108100.0,0.51073019]
[1756498879888,0.71214736,108110.0,108100.0,0.51073019]
[1756498880096,0.5271506,108110.0,108100.0,0.51073019]
[1756498880518,0.71214736,108110.0,108100.0,0.51073019]
[1756498880895,0.5271506,108110.0,108100.0,0.51073019]
[1756498881915,0.71412736,108110.0,108100.0,0.50575019]
[1756498883053,0.71412736,108110.0,108100.0,0.51088019]
[1756498883462,0.71412736,108110.0,108100.0,0.32069632]
[1756498883463,1.05412736,108110.0,108100.0,0.32069632]
[1756498883682,1.05546736,108110.0,108100.0,0.16241632]
[1756498883886,1.14376368,108110.0,108100.0,0.32069632]
[1756498884091,1.14242368,108110.0,108100.0,0.32069632]
[1756498885126,1.14376368,108110.0,108100.0,0.07412]
[1756498885328,1.14376368,108110.0,108100.0,0.2324]
[1756498885534,1.05412736,108110.0,108100.0,0.2324]
[1756498885808,1.05546736,108110.0,108100.0,0.2324]
[1756498886004,1.05546736,108110.0,108100.0,0.2314]
[1756498886441,1.05546736,108110.0,108100.0,0.07312]
[1756498886646,1.05546736,108110.0,108100.0,0.2314]
[1756498886845,1.17157768,108110.0,108100.0,0.2294]
[1756498888647,1.17157768,108110.0,108100.0,0.07112]
[1756498888852,1.17157768,108110.0,108100.0,0.2294]
[1756498889055,1.17157768,108110.0,108100.0,0.07112]
[1756498889244,1.17157768,108110.0,108100.0,0.2294]
[1756498890673,1.17157768,108110.0,108100.0,0.07112]
[1756498891079,1.17157768,108110.0,108100.0,0.2294]
[1756498891817,1.28081282,108110.0,108100.0,0.07112]
[1756498892022,0.52504811,108080.0,108070.0,0.07116]
[1756498892318,1.65128393,108080.0,108070.0,0.22036]
[1756498892544,1.65331393,108080.0,108070.0,0.22036]
[1756498892764,1.68113593,108080.0,108070.0,0.22036]
[1756498893460,1.68113593,108080.0,108070.0,0.07116]
[1756498893652,1.68243593,108080.0,108070.0,0.22944]
[1756498893887,1.68243593,108080.0,108070.0,0.07116]
[1756498894165,1.69957743,108080.0,108070.0,0.07116]
[1756498894370,0.18508236,108060.0,108050.0,0.1432743]
[1756498894651,0.72785779,108060.0,108050.0,0.38985062]
[1756498894854,0.48484125,108060.0,108050.0,0.39498062]
[1756498895071,0.69774861,108060.0,108050.0,0.39498062]
[1756498895275,0.69774861,108060.0,108050.0,0.32286632]
[1756498895892,0.21492736,108060.0,108050.0,0.32286632]
[1756498896067,0.74207796,108060.0,108050.0,0.32286632]
[1756498896269,0.74207796,108060.0,108050.0,0.31773632]
[1756498896465,0.74005796,108060.0,108050.0,0.32286632]
[1756498896669,0.74207796,108060.0,108050.0,0.32386632]
[1756498897318,0.73078296,108060.0,108050.0,0.32386632]
[1756498897532,0.73078296,108060.0,108050.0,0.32586632]
[1756498897735,0.75098227,108060.0,108050.0,0.32586632]
[1756498897942,0.04802431,108060.0,108050.0,0.56206409]
[1756498898146,0.57517491,108060.0,108050.0,0.56206409]
[1756498898369,0.57517491,108060.0,108050.0,0.51096581]
[1756498899000,0.04802431,108060.0,108050.0,0.51096581]
[1756498899205,0.36019931,108060.0,108050.0,0.51096581]
[1756498899405,1.07243227,108060.0,108050.0,0.35268581]
[1756498899619,0.88734991,108060.0,108050.0,0.51096581]
[1756498900401,0.88734991,108060.0,108050.0,0.23244]
[1756498900402,1.10154404,108060.0,108050.0,0.23244]
[1756498900622,1.10154404,108060.0,108050.0,0.07416]
[1756498900823,1.10154404,108060.0,108050.0,0.23244]
[1756498901364,1.10154404,108060.0,108050.0,0.07216]
[1756498901486,1.10154404,108060.0,108050.0,0.23044]
[1756498902195,1.10154404,108060.0,108050.0,0.22944]
[1756498902364,1.10288404,108060.0,108050.0,0.22944]
[1756498902901,1.6680558,108060.0,108050.0,0.22944]
[1756498903377,1.6958848,108060.0,108050.0,0.22944]
[1756498903611,1.69587765,108060.0,108050.0,0.22944]
[1756498903828,1.69587765,108060.0,108050.0,0.07116]
[1756498904046,0.52511662,108040.0,108030.0,0.07116]
[1756498904258,0.18515089,108020.0,108010.0,0.07453]
[1756498904470,0.71230149,108020.0,108010.0,0.32110632]
[1756498904684,0.71230149,108020.0,108010.0,0.32306632]
[1756498904885,0.74013549,108020.0,108010.0,0.32306632]
[1756498905499,0.21298489,108020.0,108010.0,0.32706632]
[1756498905676,0.74013549,108020.0,108010.0,0.32706632]
[1756498906207,0.74013549,108020.0,108010.0,0.33006632]
[1756498907008,0.74013549,108020.0,108010.0,0.32706632]
[1756498907222,0.5549846,108020.0,108010.0,0.51223435]
[1756498907459,0.5549846,108020.0,108010.0,0.50823435]
[1756498907773,0.5549846,108020.0,108010.0,0.51123435]
[1756498907899,0.367834,108020.0,108010.0,0.51123435]
[1756498909181,0.367834,108020.0,108010.0,0.51223435]
[1756498909669,0.367834,108020.0,108010.0,0.51123435]
[1756498910074,0.71228491,108030.0,108020.0,0.18515089]
[1756498910283,0.71228491,108030.0,108020.0,0.27849721]
[1756498910492,0.74011591,108030.0,108020.0,0.27849721]
[1756498910694,0.21296531,108030.0,108020.0,0.27849721]
[1756498910907,0.74011591,108030.0,108020.0,0.27849721]
[1756498911263,0.74011591,108030.0,108020.0,0.28049721]
[1756498912077,1.08011591,108030.0,108020.0,0.28049721]
[1756498912529,1.08011591,108030.0,108020.0,0.25366632]
[1756498912951,1.08011591,108030.0,108020.0,0.43981721]
[1756498913386,0.8949816,108030.0,108020.0,0.43981721]
[1756498913606,1.08011535,108030.0,108020.0,0.43981721]
[1756498914399,0.027831,108030.0,108020.0,0.43981721]
[1756498914574,0.8671506,108040.0,108030.0,0.18513375]
[1756498914926,0.8671506,108040.0,108030.0,0.34968007]
[1756498914927,0.027828,108040.0,108030.0,0.34968007]
[1756498915133,0.8949786,108040.0,108030.0,0.34968007]
[1756498915779,0.027828,108040.0,108030.0,0.34968007]
[1756498915994,0.74191695,108060.0,108050.0,0.18509949]
[1756498916201,0.77867463,108060.0,108050.0,0.50291581]
[1756498916428,1.12682639,108060.0,108050.0,0.50796581]
[1756498916646,1.11757228,108060.0,108050.0,0.50796581]
[1756498916866,0.93248992,108060.0,108050.0,0.50796581]
[1756498917073,1.11757228,108060.0,108050.0,0.50796581]
[1756498919438,0.59042168,108060.0,108050.0,0.50796581]
[1756498919664,0.40533932,108060.0,108050.0,0.50796581]
[1756498919887,0.59042168,108060.0,108050.0,0.50792581]
[1756498920315,1.11955228,108060.0,108050.0,0.32382632]
[1756498920526,1.11955228,108060.0,108050.0,0.50892581]
[1756498920948,0.93252814,108060.0,108050.0,0.50892581]
[1756498921200,0.20970898,108080.0,108050.0,1.06836246]
[1756498921414,0.20970898,108080.0,108070.0,0.18506523]
[1756498921415,0.01972746,108080.0,108070.0,0.18506523]
[1756498921629,0.027819,108080.0,108070.0,0.50789155]
[1756498921842,0.71218562,108090.0,108080.0,0.18504811]
[1756498922051,0.23258117,108090.0,108080.0,0.27839443]
[1756498922260,0.54476417,108090.0,108080.0,0.27839443]
[1756498922466,0.18701502,108090.0,108080.0,0.08829632]
[1756498922686,0.18701502,108090.0,108080.0,0.24657632]
[1756498922687,0.78808115,108090.0,108080.0,0.24657632]
[1756498922894,0.71416562,108090.0,108080.0,0.08829632]
[1756498923104,0.71416562,108090.0,108080.0,0.24657632]
[1756498923279,1.05416562,108090.0,108080.0,0.25162632]
[1756498923510,1.05416562,108090.0,108080.0,0.43667443]
[1756498923727,1.07462336,108090.0,108080.0,0.43367443]
[1756498924242,1.07762336,108090.0,108080.0,0.43367443]
[1756498924448,1.08062336,108090.0,108080.0,0.43367443]
[1756498925061,0.52504811,108080.0,108070.0,0.0712]
[1756498925307,1.04225538,108080.0,108070.0,0.31773632]
[1756498925526,0.18508236,108060.0,108050.0,0.29364]
[1756498925752,0.71223296,108060.0,108050.0,0.15945632]
[1756498925961,0.71421296,108060.0,108050.0,0.31769632]
[1756498926171,0.78890445,108060.0,108050.0,0.31769632]
[1756498926382,0.78890445,108060.0,108050.0,0.2294]
[1756498927212,1.05421296,108060.0,108050.0,0.2314]
[1756498928028,1.05421296,108060.0,108050.0,0.2334]
[1756498928648,0.52706236,108060.0,108050.0,0.07516]
[1756498928857,1.05421296,108060.0,108050.0,0.2334]
[1756498929591,1.05555296,108060.0,108050.0,0.2334]
[1756498929749,1.14384928,108060.0,108050.0,0.2334]
[1756498930528,1.1647881,108060.0,108050.0,0.07316]
[1756498930739,1.1647881,108060.0,108030.0,0.003]
[1756498930740,0.18511662,108040.0,108030.0,0.07416]
[1756498930918,0.52511488,108050.0,108030.0,0.50583007]
[1756498931131,0.18511662,108040.0,108030.0,0.50583007]
[1756498931283,0.18511662,108040.0,108030.0,0.50788007]
[1756498931724,1.05226548,108050.0,108040.0,0.18511662]
[1756498931923,0.52511488,108050.0,108040.0,0.27846294]
[1756498933278,1.05424548,108050.0,108040.0,0.25158632]
[1756498934296,1.12893697,108050.0,108040.0,0.25158632]
[1756498934504,1.12893697,108050.0,108040.0,0.09334632]
[1756498934703,0.18511662,108040.0,108030.0,0.25929309]
[1756498934904,0.18511662,108040.0,108030.0,0.50787941]
[1756498934905,0.71226722,108040.0,108030.0,0.50787941]
[1756498935279,0.71226722,108040.0,108030.0,0.34963941]
[1756498935480,0.80254354,108040.0,108030.0,0.31769632]
[1756498935781,0.80254354,108040.0,108030.0,0.31869632]
[1756498936570,0.80254354,108040.0,108030.0,0.32069632]
[1756498936979,0.80254354,108040.0,108030.0,0.32274632]
[1756498937191,0.80254354,108040.0,108030.0,0.50988007]
[1756498937398,0.80254354,108040.0,108030.0,0.32474632]
[1756498937610,1.14254354,108040.0,108030.0,0.16145632]
[1756498937817,1.14388354,108040.0,108030.0,0.2314]
[1756498938245,1.1609924,108040.0,108030.0,0.2324]
[1756498938664,1.1596524,108040.0,108030.0,0.2324]
[1756498939313,1.1596524,108040.0,108030.0,0.2294]
[1756498940486,0.54222548,108040.0,108030.0,0.50791007]
[1756498940686,0.52511662,108040.0,108030.0,0.50791007]
[1756498940924,0.52511662,108040.0,108030.0,0.32277632]
[1756498941239,0.52511662,108040.0,108030.0,0.50791007]
[1756498942104,0.34,108040.0,108030.0,0.50791007]
[1756498942768,0.027829,108050.0,108030.0,0.50791007]
[1756498943016,0.19433647,108060.0,108050.0,0.18509949]
[1756498943238,0.56216147,108060.0,108050.0,0.32281632]
[1756498943472,0.027825,108060.0,108050.0,0.50791581]
[1756498943699,0.18506523,108070.0,108060.0,0.18508236]
[1756498943918,0.24902345,108070.0,108060.0,0.09131632]
[1756498944158,0.24902345,108070.0,108060.0,0.09337632]
[1756498944363,0.59100345,108070.0,108060.0,0.09337632]
[1756498944580,0.55288723,108070.0,108060.0,0.27745868]
[1756498945028,0.367822,108070.0,108060.0,0.27745868]
[1756498945243,0.55288723,108070.0,108060.0,0.27745868]
[1756498945462,0.367822,108070.0,108060.0,0.27745868]
[1756498945683,0.34,108070.0,108060.0,0.27745868]
[1756498945905,0.21286892,108080.0,108070.0,0.18506523]
[1756498946119,0.21286892,108080.0,108070.0,0.50788155]
[1756498946338,0.55484892,108080.0,108070.0,0.32281632]
[1756498946626,0.55484892,108080.0,108070.0,0.50788155]
[1756498946847,0.55286892,108080.0,108070.0,0.50788155]
[1756498947279,0.36782,108080.0,108070.0,0.50788155]
[1756498947501,0.341,108080.0,108070.0,0.50788155]
[1756498947727,0.001,108080.0,108070.0,0.50788155]
[1756498947949,0.001,108080.0,108070.0,1.03503215]
[1756498948192,0.001,108080.0,108070.0,1.06762723]
[1756498948629,0.001,108080.0,108070.0,1.03503215]
[1756498948871,0.02045774,108090.0,108080.0,0.18504811]
[1756498949095,0.02045774,108090.0,108080.0,0.27334443]
[1756498949317,0.34,108100.0,108090.0,0.18501634]
[1756498949534,0.34,108100.0,108090.0,0.50271266]
[1756498949738,0.34,108100.0,108090.0,0.50779266]
[1756498949948,0.56903081,108100.0,108090.0,0.34955266]
[1756498950153,0.56705081,108100.0,108090.0,0.50779266]
[1756498950626,0.34,108100.0,108090.0,0.50779266]
[1756498950834,0.34,108100.0,108090.0,0.50879266]
[1756498951299,0.34,108100.0,108090.0,0.50979266]
[1756498952225,0.18507582,108130.0,108110.0,0.18498226]
[1756498952439,0.71211314,108130.0,108120.0,0.34317965]
[1756498952859,1.05211314,108130.0,108120.0,0.1582]
[1756498953099,0.52497965,108120.0,108110.0,0.15945632]
[1756498953323,0.52497965,108120.0,108110.0,0.31765632]
[1756498953324,1.05213025,108120.0,108110.0,0.31765632]
[1756498953534,1.05213025,108120.0,108110.0,0.50265308]
[1756498953954,1.05213025,108120.0,108110.0,0.31765632]
[1756498954433,1.09075008,108120.0,108110.0,0.31765632]
[1756498954656,0.6518958,108120.0,108110.0,0.50265308]
[1756498954866,1.09175008,108120.0,108110.0,0.50265308]
[1756498955081,1.09175008,108120.0,108110.0,0.31765632]
[1756498955519,0.03961983,108120.0,108110.0,0.50265308]
[1756498955976,0.03861983,108120.0,108110.0,0.50265308]
[1756498956189,0.37961983,108120.0,108110.0,0.50265308]
[1756498957046,0.37761983,108120.0,108110.0,0.50365308]
[1756498957252,0.37861983,108120.0,108110.0,0.50365308]
[1756498957475,1.09173008,108120.0,108110.0,0.34445308]
[1756498957910,0.56457948,108120.0,108110.0,0.50773308]
[1756498958150,1.09173008,108120.0,108110.0,0.50265308]
[1756498958397,1.67292269,108120.0,108110.0,0.22936]
[1756498958619,1.14577209,108120.0,108110.0,0.23036]
[1756498958853,1.14577209,108120.0,108110.0,0.07116]
[1756498959081,0.18503745,108090.0,108080.0,0.18504811]
[1756498959310,0.71218805,108090.0,108080.0,0.50282443]
[1756498959539,0.71218805,108090.0,108080.0,0.34958443]
[1756498959765,0.18503745,108090.0,108080.0,0.50794443]
[1756498959990,0.71218159,108090.0,108080.0,0.50794443]
[1756498960213,0.71416159,108090.0,108080.0,0.16453632]
[1756498960443,1.14245791,108090.0,108080.0,0.31885632]
[1756498960665,1.05416159,108090.0,108080.0,0.50696443]
[1756498960902,1.05218159,108090.0,108080.0,0.50998443]
[1756498961151,0.34,108090.0,108080.0,0.50998443]
[1756498961377,0.52503099,108090.0,108080.0,0.50998443]
[1756498961588,1.14245791,108090.0,108080.0,0.34550443]
[1756498961876,1.14245791,108090.0,108080.0,0.50902443]
[1756498962099,1.14245791,108090.0,108080.0,0.31793632]
[1756498962544,0.34,108090.0,108080.0,0.50806443]
[1756498962760,0.52503099,108090.0,108080.0,0.50806443]
[1756498963190,0.52503099,108090.0,108080.0,0.50906443]
[1756498963378,1.05218159,108090.0,108080.0,0.50906443]
[1756498963584,1.05218159,108090.0,108080.0,0.51006443]
[1756498964001,1.05424159,108090.0,108080.0,0.51006443]
[1756498964206,1.14253791,108090.0,108080.0,0.51010443]
[1756498964433,0.34,108090.0,108080.0,0.51010443]
[1756498964586,0.52503099,108090.0,108080.0,0.51010443]
[1756498965386,1.05218159,108090.0,108080.0,0.51010443]
[1756498966030,1.05416159,108090.0,108080.0,0.51010443]
[1756498966444,1.05218159,108090.0,108080.0,0.51010443]
[1756498967725,0.34,108090.0,108080.0,0.51010443]
[1756498967932,0.8671506,108090.0,108080.0,0.51010443]
[1756498968362,0.34,108090.0,108080.0,0.51010443]
[1756498969205,0.52503099,108090.0,108080.0,0.51010443]